[Event "SWE-ch Masters 2019"]
[Site "Eskilstuna"]
[Date "2019.07.07"]
[Round "2.8"]
[White "Olsson, William"]
[Black "Olsson, Simon"]
[Result "0-1"]
[ECO "D37"]
[WhiteElo "2113"]
[BlackElo "2176"]
[Annotator "NA"]
[PlyCount "112"]
[EventDate "2019.07.06"]
[EventType "swiss"]
[EventCountry "SWE"]
[SourceTitle "playchess.com"]
[Source "ChessBase"]
[SourceQuality "1"]
[TimeControl "40/5400+30:1800+30"]

1. Nf3 {[%emt 0:00:00]} d5 {[%emt 0:00:00]} 2. d4 {[%emt 0:00:00]} Nf6 {[%emt 0:00:14]} 3. c4 {[%emt 0:00:36]} e6 {[%emt 0:00:17]} 4. Nc3 {[%emt 0:00:53]} Nbd7 {[%emt 0:03:44]} 5. e3 {[%emt 0:01:35]} Be7 {[%emt 0:05:59]} 6. Bd3 {[%emt 0:01:52]} O-O {[%emt 0:00:17]} 7. O-O {[%emt 0:00:05]} dxc4 {[%emt 0:01:14]} 8. Bxc4 {[%emt 0:00:41]} c5 {[%emt 0:00:11]} 9. Qd3 {[%emt 0:05:08]} cxd4 {[%emt 0:04:13]} 10. exd4 {[%emt 0:00:07]} Nb6 {[%emt 0:00:28]} 11. Bb3 {[%emt 0:00:07]} Bd7 {[%emt 0:03:34]} 12. Ne5 {[%emt 0:05:28]} Bc6 {[%emt 0:02:21]} 13. Bc2 {[%emt 0:03:26]} Nbd5 {[%emt 0:00:45]} 14. a3 {[%emt 0:01:34]} Nxc3 {[%emt 0:00:43]} 15. Nxc6 {[%emt 0:04:51]} Ne2+ {[%emt 0:09:37]} 16. Qxe2 {[%emt 0:00:07]} bxc6 {[%emt 0:00:10]} 17. Rd1 {[%emt 0:03:04]} Qc7 {[%emt 0:01:27]} 18. Bg5 {[%emt 0:05:07]} Rfd8 {[%emt 0:07:29]} 19. Rac1 {[%emt 0:03:27]} Rac8 {[%emt 0:08:37]} 20. Qd3 {[%emt 0:11:56]} h6 {[%emt 0:00:36]} 21. Bh4 {[%emt 0:05:07]} c5 {[%emt 0:08:17]} 22. Qf3 {[%emt 0:04:07]} cxd4 {[%emt 0:05:48]} 23. Bh7+ {[%emt 0:00:29]} Kxh7 {[%emt 0:00:06]} 24. Rxc7 {[%emt 0:00:14]} Rxc7 {[%emt 0:00:01]} 25. Qd3+ {[%emt 0:01:10]} Kg8 {[%emt 0:00:39]} 26. Bg3 {[%emt 0:00:16]} Rc5 {[%emt 0:03:44]} 27. f4 {[%emt 0:02:57]} a5 {[%emt 0:04:34]} 28. Bf2 {[%emt 0:01:55]} Rcd5 {[%emt 0:00:33]} 29. Rc1 {[%emt 0:03:08]} Nd7 {[%emt 0:01:51]} 30. Kf1 {[%emt 0:04:52]} Nc5 {[%emt 0:00:51]} 31. Qd1 {[%emt 0:02:16]} d3 {[%emt 0:02:26]} 32. Bxc5 {[%emt 0:00:41]} Bxc5 {[%emt 0:00:11]} 33. Qf3 {[%emt 0:05:11]} Bd4 {[%emt 0:03:30]} 34. Rb1 {[%emt 0:01:40]} d2 {[%emt 0:04:22]} 35. b4 {[%emt 0:03:33]} Bb2 {[%emt 0:02:21]} 36. Rd1 {[%emt 0:01:49]} Rd3 {[%emt 0:01:07]} 37. Qb7 {[%emt 0:01:44]} a4 {[%emt 0:00:57]} 38. b5 {[%emt 0:00:26]} Bxa3 {[%emt 0:00:58]} 39. b6 {[%emt 0:00:50]} Bd6 {[%emt 0:05:46]} 40. Qe4 {[%emt 0:00:47]} Bb8 {[%emt 0:01:20]} 41. Qxa4 {[%emt 0:36:06]} R3d4 {[%emt 0:30:27]} 42. Qc6 {[%emt 0:01:01]} Bxf4 {[%emt 0:01:19]} 43. g3 {[%emt 0:00:17]} Bb8 {[%emt 0:00:18]} 44. Ke2 {[%emt 0:02:08]} h5 {[%emt 0:00:58]} 45. Kf2 {[%emt 0:06:31]} h4 {[%emt 0:00:23]} 46. b7 {[%emt 0:01:08]} hxg3+ {[%emt 0:04:59]} 47. hxg3 {[%emt 0:00:08]} Rd3 {[%emt 0:00:07]} 48. g4 {[%emt 0:00:33]} Bf4 {[%emt 0:01:36]} 49. Qc8 {[%emt 0:00:00]} Kf8 {[%emt 0:00:00]} 50. g5 {[%emt 0:00:00]} Ke7 {[%emt 0:00:00]} 51. Qc5+ {[%emt 0:00:00]} Bd6 {[%emt 0:00:00]} 52. Qc8 {[%emt 0:00:00]} Rd5 {[%emt 0:00:00]} 53. Ke2 {[%emt 0:00:00]} Bb8 {[%emt 0:00:00]} 54. Ke3 {[%emt 0:00:00]} Rxg5 {[%emt 0:00:00]} 55. Rf1 {[%emt 0:00:00]} Re5+ {[%emt 0:00:00]} 56. Kf2 {[%emt 0:00:00]} Rf5+ {[%emt 0:00:00]} 0-1

[Event "SWE-ch Masters 2019"]
[Site "Eskilstuna"]
[Date "2019.07.07"]
[Round "2.9"]
[White "Jogstad, Daniel"]
[Black "Hellstrom, Magnus"]
[Result "1-0"]
[ECO "B31"]
[WhiteElo "2154"]
[BlackElo "2061"]
[Annotator "NA"]
[PlyCount "79"]
[EventDate "2019.07.06"]
[EventType "swiss"]
[EventCountry "SWE"]
[SourceTitle "playchess.com"]
[Source "ChessBase"]
[SourceQuality "1"]
[TimeControl "40/5400+30:1800+30"]

1. e4 {[%emt 0:00:00]} c5 {[%emt 0:00:01]} 2. Nf3 {[%emt 0:00:00]} Nc6 {[%emt 0:00:13]} 3. Bb5 {[%emt 0:00:00]} g6 {[%emt 0:00:26]} 4. Bxc6 {[%emt 0:00:00]} bxc6 {[%emt 0:00:28]} 5. O-O {[%emt 0:00:57]} Bg7 {[%emt 0:00:36]} 6. c3 {[%emt 0:01:49]} Nh6 {[%emt 0:04:46]} 7. d3 {[%emt 0:05:57]} O-O {[%emt 0:02:54]} 8. Bg5 {[%emt 0:08:37]} f6 {[%emt 0:02:43]} 9. Be3 {[%emt 0:00:49]} d6 {[%emt 0:00:55]} 10. h3 {[%emt 0:05:29]} Rb8 {[%emt 0:03:19]} 11. Qd2 {[%emt 0:14:48]} Nf7 {[%emt 0:00:30]} 12. c4 {[%emt 0:05:44]} f5 {[%emt 0:14:15]} 13. Nc3 {[%emt 0:01:01]} e5 {[%emt 0:00:21]} 14. Qe2 {[%emt 0:08:11]} Kh8 {[%emt 0:04:30]} 15. b3 {[%emt 0:01:47]} Qf6 {[%emt 0:14:04]} 16. Bd2 {[%emt 0:04:30]} g5 {[%emt 0:13:03]} 17. exf5 {[%emt 0:03:31]} Bxf5 {[%emt 0:00:27]} 18. Ne4 {[%emt 0:00:24]} Qg6 {[%emt 0:00:40]} 19. g4 {[%emt 0:05:22]} Bc8 {[%emt 0:02:47]} 20. Nfxg5 {[%emt 0:11:45]} Nxg5 {[%emt 0:01:01]} 21. Nxg5 {[%emt 0:00:05]} d5 {[%emt 0:02:29]} 22. Rae1 {[%emt 0:01:21]} Bd7 {[%emt 0:01:33]} 23. f4 {[%emt 0:02:39]} exf4 {[%emt 0:02:34]} 24. Rxf4 {[%emt 0:02:38]} Rfe8 {[%emt 0:08:34]} 25. Qf1 {[%emt 0:04:29]} Rxe1 {[%emt 0:00:30]} 26. Qxe1 {[%emt 0:00:10]} Qxd3 {[%emt 0:01:01]} 27. Rf3 {[%emt 0:02:40]} Qd4+ {[%emt 0:09:43]} 28. Be3 {[%emt 0:00:39]} Qb2 {[%emt 0:02:01]} 29. Qh4 {[%emt 0:02:14]} Qb1+ {[%emt 0:00:43]} 30. Rf1 {[%emt 0:00:20]} Qd3 {[%emt 0:01:22]} 31. Bxc5 {[%emt 0:04:07]} Re8 {[%emt 0:00:55]} 32. Nf7+ {[%emt 0:00:29]} Kg8 {[%emt 0:00:10]} 33. Nd6 {[%emt 0:00:15]} Re2 {[%emt 0:02:23]} 34. Qd8+ {[%emt 0:02:15]} Be8 {[%emt 0:00:16]} 35. Bf2 {[%emt 0:01:46]} Bd4 {[%emt 0:01:53]} 36. Qg5+ {[%emt 0:00:27]} Bg6 {[%emt 0:01:45]} 37. Qd8+ {[%emt 0:00:18]} Kg7 {[%emt 0:00:40]} 38. Qc7+ {[%emt 0:00:39]} Kh6 {[%emt 0:00:21]} 39. Nf5+ {[%emt 0:00:31]} Bxf5 {[%emt 0:01:05]} 40. Qf4+ {[%emt 0:00:08]} 1-0

[Event "SWE-ch Masters 2019"]
[Site "Eskilstuna"]
[Date "2019.07.07"]
[Round "2.10"]
[White "Carlsson, Andreas"]
[Black "Sivhed, Johan"]
[Result "0-1"]
[ECO "D02"]
[WhiteElo "2019"]
[BlackElo "2023"]
[Annotator "NA"]
[PlyCount "58"]
[EventDate "2019.07.06"]
[EventType "swiss"]
[EventCountry "SWE"]
[SourceTitle "playchess.com"]
[Source "ChessBase"]
[SourceQuality "1"]
[TimeControl "40/5400+30:1800+30"]

1. d4 {[%emt 0:00:00]} d5 {[%emt 0:00:00]} 2. Nf3 {[%emt 0:00:00]} Nf6 {[%emt 0:00:00]} 3. Bf4 {[%emt 0:00:00]} Bf5 {[%emt 0:00:14]} 4. e3 {[%emt 0:00:23]} e6 {[%emt 0:00:07]} 5. Be2 {[%emt 0:01:58]} Bd6 {[%emt 0:08:43]} 6. Bg3 {[%emt 0:01:56]} h6 {[%emt 0:05:56]} 7. Nbd2 {[%emt 0:00:45]} O-O {[%emt 0:02:53]} 8. Ne5 {[%emt 0:01:49]} c5 {[%emt 0:03:38]} 9. c3 {[%emt 0:03:27]} Nc6 {[%emt 0:04:59]} 10. O-O {[%emt 0:01:53]} Qc7 {[%emt 0:02:10]} 11. f4 {[%emt 0:04:03]} Ne4 {[%emt 0:02:27]} 12. Be1 {[%emt 0:10:09]} f6 {[%emt 0:05:45]} 13. Nd3 {[%emt 0:07:44]} c4 {[%emt 0:08:35]} 14. Nf2 {[%emt 0:01:15]} Nxf2 {[%emt 0:04:25]} 15. Rxf2 {[%emt 0:01:30]} e5 {[%emt 0:05:49]} 16. g3 {[%emt 0:11:54]} exf4 {[%emt 0:09:07]} 17. exf4 {[%emt 0:01:00]} Rfe8 {[%emt 0:01:20]} 18. b3 {[%emt 0:05:33]} b5 {[%emt 0:01:48]} 19. Bf3 {[%emt 0:03:18]} Ne7 {[%emt 0:06:44]} 20. a4 {[%emt 0:04:33]} a6 {[%emt 0:04:46]} 21. axb5 {[%emt 0:00:54]} axb5 {[%emt 0:00:14]} 22. Rxa8 {[%emt 0:00:05]} Rxa8 {[%emt 0:00:37]} 23. bxc4 {[%emt 0:00:54]} bxc4 {[%emt 0:00:10]} 24. Qe2 {[%emt 0:01:37]} Ra1 {[%emt 0:04:10]} 25. g4 {[%emt 0:02:27]} Bd3 {[%emt 0:01:06]} 26. Qe6+ {[%emt 0:00:52]} Kh7 {[%emt 0:01:11]} 27. f5 {[%emt 0:06:26]} Bxh2+ {[%emt 0:04:24]} 28. Kg2 {[%emt 0:06:25]} Qg3+ {[%emt 0:00:18]} 29. Kh1 {[%emt 0:00:03]} Qg1# {[%emt 0:00:06]} 0-1

[Event "SWE-ch Masters 2019"]
[Site "Eskilstuna"]
[Date "2019.07.08"]
[Round "3.1"]
[White "Olsson, Svante"]
[Black "Landgren, Andreas"]
[Result "1/2-1/2"]
[ECO "A13"]
[WhiteElo "2155"]
[BlackElo "2246"]
[Annotator "NA"]
[PlyCount "63"]
[EventDate "2019.07.06"]
[EventType "swiss"]
[EventCountry "SWE"]
[SourceTitle "playchess.com"]
[Source "ChessBase"]
[SourceQuality "1"]
[TimeControl "40/5400+30:1800+30"]

1. c4 {[%emt 0:00:00]} e6 {[%emt 0:00:00]} 2. Nf3 {[%emt 0:00:00]} d5 {[%emt 0:00:00]} 3. g3 {[%emt 0:00:00]} Nf6 {[%emt 0:00:00]} 4. Bg2 {[%emt 0:00:01]} dxc4 {[%emt 0:00:05]} 5. Nc3 {[%emt 0:00:25]} Nbd7 {[%emt 0:10:59]} 6. Qa4 {[%emt 0:01:21]} a6 {[%emt 0:13:42]} 7. O-O {[%emt 0:05:04]} Be7 {[%emt 0:01:29]} 8. Qxc4 {[%emt 0:02:00]} b5 {[%emt 0:05:08]} 9. Qd3 {[%emt 0:02:20]} Bb7 {[%emt 0:01:11]} 10. Qc2 {[%emt 0:05:51]} O-O {[%emt 0:06:23]} 11. d3 {[%emt 0:00:41]} c5 {[%emt 0:02:32]} 12. a4 {[%emt 0:02:35]} b4 {[%emt 0:15:14]} 13. Nd1 {[%emt 0:00:08]} a5 {[%emt 0:01:02]} 14. Ne3 {[%emt 0:00:29]} Nb6 {[%emt 0:00:51]} 15. Ne5 {[%emt 0:03:59]} Bxg2 {[%emt 0:04:20]} 16. Kxg2 {[%emt 0:00:20]} Nfd5 {[%emt 0:03:44]} 17. N5c4 {[%emt 0:02:33]} Nxe3+ {[%emt 0:09:01]} 18. Bxe3 {[%emt 0:00:42]} Nxc4 {[%emt 0:00:11]} 19. Qxc4 {[%emt 0:02:15]} Qd5+ {[%emt 0:00:14]} 20. f3 {[%emt 0:01:52]} Qxc4 {[%emt 0:02:04]} 21. dxc4 {[%emt 0:00:03]} Bf6 {[%emt 0:03:21]} 22. Rab1 {[%emt 0:00:33]} Rfd8 {[%emt 0:02:18]} 23. b3 {[%emt 0:01:59]} Bd4 {[%emt 0:02:25]} 24. Kf2 {[%emt 0:00:10]} Kf8 {[%emt 0:00:48]} 25. Rbd1 {[%emt 0:00:13]} Bxe3+ {[%emt 0:00:45]} 26. Kxe3 {[%emt 0:00:14]} Ke7 {[%emt 0:00:18]} 27. Rd3 {[%emt 0:00:10]} Rxd3+ {[%emt 0:00:24]} 28. exd3 {[%emt 0:00:59]} Rd8 {[%emt 0:00:15]} 29. f4 {[%emt 0:00:09]} f6 {[%emt 0:02:11]} 30. Re1 {[%emt 0:00:48]} h5 {[%emt 0:01:13]} 31. Kd2 {[%emt 0:00:20]} Rd4 {[%emt 0:04:41]} 32. Re4 {[%emt 0:00:14]} 1/2-1/2

[Event "SWE-ch Masters 2019"]
[Site "Eskilstuna"]
[Date "2019.07.08"]
[Round "3.3"]
[White "Olsson, Simon"]
[Black "Nikolic, Vladan"]
[Result "1/2-1/2"]
[ECO "D01"]
[WhiteElo "2176"]
[BlackElo "2153"]
[Annotator "NA"]
[PlyCount "38"]
[EventDate "2019.07.06"]
[EventType "swiss"]
[EventCountry "SWE"]
[SourceTitle "playchess.com"]
[Source "ChessBase"]
[SourceQuality "1"]
[TimeControl "40/5400+30:1800+30"]

1. d4 {[%emt 0:00:00]} Nf6 {[%emt 0:00:00]} 2. Bg5 {[%emt 0:00:00]} d5 {[%emt 0:00:00]} 3. Bxf6 {[%emt 0:00:00]} gxf6 {[%emt 0:00:03]} 4. e3 {[%emt 0:01:02]} c5 {[%emt 0:00:24]} 5. Nc3 {[%emt 0:00:40]} Nc6 {[%emt 0:01:12]} 6. Nf3 {[%emt 0:01:54]} cxd4 {[%emt 0:06:22]} 7. Nxd4 {[%emt 0:00:08]} e6 {[%emt 0:00:29]} 8. Be2 {[%emt 0:07:54]} Bg7 {[%emt 0:07:36]} 9. g4 {[%emt 0:05:55]} Bd7 {[%emt 0:10:27]} 10. Qd2 {[%emt 0:02:28]} Qb6 {[%emt 0:10:10]} 11. O-O-O {[%emt 0:00:56]} Nxd4 {[%emt 0:00:52]} 12. Qxd4 {[%emt 0:04:50]} Qxd4 {[%emt 0:00:08]} 13. exd4 {[%emt 0:01:02]} Bh6+ {[%emt 0:04:07]} 14. Kb1 {[%emt 0:02:27]} Ke7 {[%emt 0:02:27]} 15. h3 {[%emt 0:03:49]} Rab8 {[%emt 0:02:29]} 16. Bd3 {[%emt 0:01:33]} b5 {[%emt 0:06:09]} 17. Ne2 {[%emt 0:03:50]} b4 {[%emt 0:02:54]} 18. f4 {[%emt 0:00:55]} Bb5 {[%emt 0:12:46]} 19. f5 {[%emt 0:00:22]} Bg7 {[%emt 0:00:23]} 1/2-1/2

[Event "SWE-ch Masters 2019"]
[Site "Eskilstuna"]
[Date "2019.07.08"]
[Round "3.4"]
[White "Wahlund, Max"]
[Black "Lind, Jan-Olov"]
[Result "1-0"]
[ECO "A65"]
[WhiteElo "2100"]
[BlackElo "2155"]
[Annotator "NA"]
[PlyCount "123"]
[EventDate "2019.07.06"]
[EventType "swiss"]
[EventCountry "SWE"]
[SourceTitle "playchess.com"]
[Source "ChessBase"]
[SourceQuality "1"]
[TimeControl "40/5400+30:1800+30"]

1. d4 {[%emt 0:00:00]} g6 {[%emt 0:00:00]} 2. c4 {[%emt 0:00:00]} Bg7 {[%emt 0:00:00]} 3. Nc3 {[%emt 0:00:00]} Nf6 {[%emt 0:00:05]} 4. e4 {[%emt 0:00:00]} d6 {[%emt 0:00:10]} 5. f3 {[%emt 0:00:00]} O-O {[%emt 0:00:37]} 6. Be3 {[%emt 0:00:00]} c5 {[%emt 0:00:44]} 7. Nge2 {[%emt 0:00:38]} Nc6 {[%emt 0:01:10]} 8. d5 {[%emt 0:00:05]} Ne5 {[%emt 0:00:45]} 9. Ng3 {[%emt 0:00:42]} e6 {[%emt 0:02:54]} 10. Be2 {[%emt 0:06:53]} exd5 {[%emt 0:04:48]} 11. cxd5 {[%emt 0:00:44]} a6 {[%emt 0:02:56]} 12. a4 {[%emt 0:02:37]} Bd7 {[%emt 0:08:39]} 13. O-O {[%emt 0:08:47]} b5 {[%emt 0:12:06]} 14. h3 {[%emt 0:17:15]} Rb8 {[%emt 0:10:02]} 15. f4 {[%emt 0:07:31]} Nc4 {[%emt 0:01:01]} 16. Bxc4 {[%emt 0:00:03]} bxc4 {[%emt 0:00:07]} 17. e5 {[%emt 0:00:05]} Qe7 {[%emt 0:10:57]} 18. Qd2 {[%emt 0:02:09]} dxe5 {[%emt 0:11:43]} 19. fxe5 {[%emt 0:01:39]} Qxe5 {[%emt 0:00:18]} 20. Rf3 {[%emt 0:06:44]} Rfc8 {[%emt 0:12:24]} 21. Re1 {[%emt 0:00:02]} Re8 {[%emt 0:05:28]} 22. Re2 {[%emt 0:00:02]} Rb3 {[%emt 0:04:08]} 23. Bxc5 {[%emt 0:09:28]} Qb8 {[%emt 0:00:22]} 24. Bd4 {[%emt 0:02:19]} Rxe2 {[%emt 0:00:38]} 25. Qxe2 {[%emt 0:02:41]} Ne8 {[%emt 0:05:47]} 26. Bxg7 {[%emt 0:01:13]} Nxg7 {[%emt 0:00:27]} 27. Qxc4 {[%emt 0:02:07]} Qb6+ {[%emt 0:00:19]} 28. Kh2 {[%emt 0:00:34]} Rxb2 {[%emt 0:00:49]} 29. Nce4 {[%emt 0:02:06]} Rb1 {[%emt 0:00:46]} 30. Nf6+ {[%emt 0:06:35]} Kh8 {[%emt 0:00:08]} 31. Ne2 {[%emt 0:00:21]} Qd6+ {[%emt 0:02:03]} 32. Qf4 {[%emt 0:03:45]} Qxf4+ {[%emt 0:00:11]} 33. Rxf4 {[%emt 0:00:16]} Rb7 {[%emt 0:00:25]} 34. Rc4 {[%emt 0:09:47]} Nf5 {[%emt 0:00:16]} 35. Nc3 {[%emt 0:01:23]} Nd6 {[%emt 0:00:53]} 36. Rc5 {[%emt 0:01:51]} Kg7 {[%emt 0:01:31]} 37. Nxd7 {[%emt 0:01:39]} Rxd7 {[%emt 0:00:01]} 38. Rc6 {[%emt 0:00:30]} a5 {[%emt 0:00:57]} 39. Kg3 {[%emt 0:01:44]} Kf8 {[%emt 0:01:51]} 40. Kf4 {[%emt 0:00:22]} h6 {[%emt 0:00:31]} 41. Ke5 {[%emt 0:33:09]} Ke7 {[%emt 0:03:26]} 42. Kd4 {[%emt 0:00:00]} Rb7 {[%emt 0:11:13]} 43. Kc5 {[%emt 0:00:00]} Ne8 {[%emt 0:01:40]} 44. Nb5 {[%emt 0:00:00]} Rd7 {[%emt 0:06:42]} 45. Ra6 {[%emt 0:00:00]} Nf6 {[%emt 0:00:38]} 46. d6+ {[%emt 0:00:00]} Ke6 {[%emt 0:00:50]} 47. Rxa5 {[%emt 0:00:00]} Ne4+ {[%emt 0:01:57]} 48. Kd4 {[%emt 0:00:00]} f5 {[%emt 0:01:30]} 49. Ra6 {[%emt 0:00:00]} g5 {[%emt 0:01:14]} 50. Nc7+ {[%emt 0:00:00]} Kf6 {[%emt 0:01:11]} 51. Kd5 {[%emt 0:00:00]} h5 {[%emt 0:00:50]} 52. Rc6 {[%emt 0:00:00]} Kf7 {[%emt 0:00:56]} 53. Nb5 {[%emt 0:00:00]} h4 {[%emt 0:01:56]} 54. a5 {[%emt 0:00:00]} g4 {[%emt 0:00:40]} 55. a6 {[%emt 0:00:00]} gxh3 {[%emt 0:01:46]} 56. gxh3 {[%emt 0:00:00]} Rd8 {[%emt 0:01:27]} 57. a7 {[%emt 0:00:00]} Nf6+ {[%emt 0:01:00]} 58. Ke5 {[%emt 0:00:00]} Nd7+ {[%emt 0:00:25]} 59. Kxf5 {[%emt 0:00:00]} Ra8 {[%emt 0:00:25]} 60. Rc7 {[%emt 0:00:00]} Ke8 {[%emt 0:00:02]} 61. Nc3 {[%emt 0:00:00]} Kd8 {[%emt 0:00:25]} 62. Nd5 {[%emt 0:00:00]} 1-0

[Event "SWE-ch Masters 2019"]
[Site "Eskilstuna"]
[Date "2019.07.08"]
[Round "3.5"]
[White "Sivhed, Johan"]
[Black "Engstrom, Kaj"]
[Result "0-1"]
[ECO "B43"]
[WhiteElo "2023"]
[BlackElo "2234"]
[Annotator "NA"]
[PlyCount "74"]
[EventDate "2019.07.06"]
[EventType "swiss"]
[EventCountry "SWE"]
[SourceTitle "playchess.com"]
[Source "ChessBase"]
[SourceQuality "1"]
[TimeControl "40/5400+30:1800+30"]

1. e4 {[%emt 0:00:00]} c5 {[%emt 0:00:00]} 2. Nf3 {[%emt 0:00:00]} e6 {[%emt 0:00:00]} 3. d4 {[%emt 0:00:00]} cxd4 {[%emt 0:00:00]} 4. Nxd4 {[%emt 0:00:00]} a6 {[%emt 0:00:00]} 5. Nc3 {[%emt 0:00:14]} Qc7 {[%emt 0:01:24]} 6. Bd3 {[%emt 0:00:53]} Nf6 {[%emt 0:01:20]} 7. O-O {[%emt 0:01:51]} b5 {[%emt 0:01:19]} 8. Re1 {[%emt 0:11:41]} Bb7 {[%emt 0:13:01]} 9. e5 {[%emt 0:08:12]} b4 {[%emt 0:06:53]} 10. Na4 {[%emt 0:10:17]} Nd5 {[%emt 0:05:53]} 11. Qg4 {[%emt 0:11:56]} g6 {[%emt 0:06:27]} 12. b3 {[%emt 0:03:07]} Bg7 {[%emt 0:02:35]} 13. Qg3 {[%emt 0:03:38]} O-O {[%emt 0:08:09]} 14. Bd2 {[%emt 0:05:37]} f6 {[%emt 0:04:28]} 15. f4 {[%emt 0:01:14]} fxe5 {[%emt 0:09:45]} 16. fxe5 {[%emt 0:00:19]} Bc6 {[%emt 0:02:36]} 17. Kh1 {[%emt 0:04:37]} Qa7 {[%emt 0:15:17]} 18. Nf3 {[%emt 0:04:41]} Bxa4 {[%emt 0:05:30]} 19. bxa4 {[%emt 0:00:08]} Nc6 {[%emt 0:00:06]} 20. Rab1 {[%emt 0:07:46]} a5 {[%emt 0:00:53]} 21. h4 {[%emt 0:03:14]} Nd4 {[%emt 0:02:39]} 22. Be4 {[%emt 0:14:59]} Nf5 {[%emt 0:00:44]} 23. Qh2 {[%emt 0:01:57]} Qf2 {[%emt 0:03:09]} 24. Bxf5 {[%emt 0:00:00]} Rxf5 {[%emt 0:00:10]} 25. Rf1 {[%emt 0:01:11]} Qc5 {[%emt 0:00:07]} 26. Rbe1 {[%emt 0:02:34]} Qxc2 {[%emt 0:01:33]} 27. Rc1 {[%emt 0:00:32]} Qxa2 {[%emt 0:00:35]} 28. Rfd1 {[%emt 0:01:35]} Raf8 {[%emt 0:00:56]} 29. Qg3 {[%emt 0:00:27]} Qb2 {[%emt 0:01:16]} 30. Bg5 {[%emt 0:00:40]} Bxe5 {[%emt 0:01:12]} 31. Nxe5 {[%emt 0:00:06]} Qxe5 {[%emt 0:00:07]} 32. Qg4 {[%emt 0:00:35]} h5 {[%emt 0:01:16]} 33. Qc4 {[%emt 0:00:14]} Rf2 {[%emt 0:00:26]} 34. Qd3 {[%emt 0:00:44]} Qf5 {[%emt 0:00:14]} 35. Qd4 {[%emt 0:00:33]} Qg4 {[%emt 0:00:14]} 36. Qxg4 {[%emt 0:00:41]} hxg4 {[%emt 0:00:05]} 37. Kh2 {[%emt 0:00:11]} Ra2 {[%emt 0:00:17]} 0-1

[Event "SWE-ch Masters 2019"]
[Site "Eskilstuna"]
[Date "2019.07.08"]
[Round "3.6"]
[White "Bannoura, Jeries"]
[Black "Eriksson, Jorgen"]
[Result "0-1"]
[ECO "A08"]
[WhiteElo "1976"]
[BlackElo "2211"]
[Annotator "NA"]
[PlyCount "84"]
[EventDate "2019.07.06"]
[EventType "swiss"]
[EventCountry "SWE"]
[SourceTitle "playchess.com"]
[Source "ChessBase"]
[SourceQuality "1"]
[TimeControl "40/5400+30:1800+30"]

1. d3 {[%emt 0:00:00]} d5 {[%emt 0:00:00]} 2. g3 {[%emt 0:00:00]} Nf6 {[%emt 0:00:18]} 3. Bg2 {[%emt 0:00:00]} e6 {[%emt 0:00:29]} 4. Nf3 {[%emt 0:00:42]} Be7 {[%emt 0:00:25]} 5. O-O {[%emt 0:00:27]} c5 {[%emt 0:00:18]} 6. b3 {[%emt 0:01:30]} Nc6 {[%emt 0:00:28]} 7. Bb2 {[%emt 0:00:09]} b6 {[%emt 0:00:32]} 8. c4 {[%emt 0:03:50]} Bb7 {[%emt 0:00:20]} 9. Nbd2 {[%emt 0:04:48]} d4 {[%emt 0:02:55]} 10. a3 {[%emt 0:06:06]} O-O {[%emt 0:02:41]} 11. Ne5 {[%emt 0:08:18]} Qc7 {[%emt 0:00:44]} 12. Nxc6 {[%emt 0:00:51]} Bxc6 {[%emt 0:00:08]} 13. Nf3 {[%emt 0:00:14]} e5 {[%emt 0:04:36]} 14. e4 {[%emt 0:08:14]} Ne8 {[%emt 0:08:27]} 15. Re1 {[%emt 0:03:11]} Bd7 {[%emt 0:01:55]} 16. Bc1 {[%emt 0:04:29]} a6 {[%emt 0:01:05]} 17. Ra2 {[%emt 0:02:53]} b5 {[%emt 0:02:44]} 18. Bg5 {[%emt 0:00:48]} Bxg5 {[%emt 0:00:42]} 19. Nxg5 {[%emt 0:00:10]} f6 {[%emt 0:00:23]} 20. Nf3 {[%emt 0:02:57]} bxc4 {[%emt 0:00:46]} 21. bxc4 {[%emt 0:00:14]} Rb8 {[%emt 0:00:24]} 22. Nh4 {[%emt 0:01:03]} Nd6 {[%emt 0:01:02]} 23. f4 {[%emt 0:05:00]} Nf7 {[%emt 0:33:55]} 24. f5 {[%emt 0:09:07]} Rb6 {[%emt 0:01:50]} 25. g4 {[%emt 0:05:54]} Rfb8 {[%emt 0:00:52]} 26. Nf3 {[%emt 0:00:54]} Rb2 {[%emt 0:03:11]} 27. Ra1 {[%emt 0:02:08]} Qa5 {[%emt 0:01:24]} 28. Re2 {[%emt 0:06:16]} Ba4 {[%emt 0:02:56]} 29. Rxb2 {[%emt 0:00:23]} Rxb2 {[%emt 0:00:20]} 30. Qf1 {[%emt 0:00:46]} Qc3 {[%emt 0:05:03]} 31. Rb1 {[%emt 0:11:33]} Qxa3 {[%emt 0:03:11]} 32. h4 {[%emt 0:00:11]} Rxb1 {[%emt 0:12:35]} 33. Qxb1 {[%emt 0:00:58]} Qb4 {[%emt 0:00:34]} 34. Qa2 {[%emt 0:04:07]} a5 {[%emt 0:01:37]} 35. g5 {[%emt 0:00:07]} Qb3 {[%emt 0:01:22]} 36. Qe2 {[%emt 0:02:12]} Qd1+ {[%emt 0:05:11]} 37. Bf1 {[%emt 0:00:22]} Qxe2 {[%emt 0:00:25]} 38. Bxe2 {[%emt 0:00:04]} Bc2 {[%emt 0:01:07]} 39. Ne1 {[%emt 0:00:17]} Bb3 {[%emt 0:00:09]} 40. g6 {[%emt 0:00:29]} Nd6 {[%emt 0:00:36]} 41. gxh7+ {[%emt 0:30:52]} Kxh7 {[%emt 0:30:12]} 42. Nf3 {[%emt 0:07:30]} a4 {[%emt 0:00:35]} 0-1

[Event "SWE-ch Masters 2019"]
[Site "Eskilstuna"]
[Date "2019.07.08"]
[Round "3.7"]
[White "Crevatin, Leo"]
[Black "Gromark, Per-Olof"]
[Result "1-0"]
[ECO "A13"]
[WhiteElo "2146"]
[BlackElo "1909"]
[Annotator "NA"]
[PlyCount "79"]
[EventDate "2019.07.06"]
[EventType "swiss"]
[EventCountry "SWE"]
[SourceTitle "playchess.com"]
[Source "ChessBase"]
[SourceQuality "1"]
[TimeControl "40/5400+30:1800+30"]

1. Nf3 {[%emt 0:00:00]} d5 {[%emt 0:00:00]} 2. c4 {[%emt 0:00:00]} e6 {[%emt 0:00:00]} 3. b3 {[%emt 0:00:00]} c5 {[%emt 0:01:01]} 4. Bb2 {[%emt 0:00:08]} Nc6 {[%emt 0:00:26]} 5. e3 {[%emt 0:00:09]} d4 {[%emt 0:02:02]} 6. exd4 {[%emt 0:01:02]} cxd4 {[%emt 0:00:03]} 7. d3 {[%emt 0:00:38]} Nf6 {[%emt 0:00:57]} 8. g3 {[%emt 0:00:11]} e5 {[%emt 0:02:23]} 9. Bg2 {[%emt 0:00:12]} Bd6 {[%emt 0:00:29]} 10. O-O {[%emt 0:00:18]} O-O {[%emt 0:00:09]} 11. a3 {[%emt 0:00:44]} a5 {[%emt 0:00:31]} 12. Re1 {[%emt 0:00:54]} Re8 {[%emt 0:00:21]} 13. Nbd2 {[%emt 0:01:18]} Bf5 {[%emt 0:09:21]} 14. Qc2 {[%emt 0:01:50]} Nd7 {[%emt 0:03:20]} 15. Ne4 {[%emt 0:06:10]} Bxe4 {[%emt 0:02:35]} 16. Rxe4 {[%emt 0:00:05]} Nc5 {[%emt 0:00:44]} 17. Ree1 {[%emt 0:00:58]} f5 {[%emt 0:05:37]} 18. Nd2 {[%emt 0:03:28]} Qf6 {[%emt 0:02:14]} 19. Rab1 {[%emt 0:13:27]} Qg6 {[%emt 0:03:14]} 20. Bc1 {[%emt 0:04:46]} Nd7 {[%emt 0:21:48]} 21. Nf3 {[%emt 0:05:05]} f4 {[%emt 0:06:30]} 22. Nh4 {[%emt 0:09:06]} Qf6 {[%emt 0:01:01]} 23. Nf3 {[%emt 0:12:29]} g5 {[%emt 0:04:19]} 24. Nd2 {[%emt 0:01:17]} g4 {[%emt 0:02:59]} 25. Ne4 {[%emt 0:00:07]} Qg6 {[%emt 0:00:21]} 26. Nxd6 {[%emt 0:02:29]} Qxd6 {[%emt 0:00:02]} 27. Be4 {[%emt 0:05:03]} Kh8 {[%emt 0:03:26]} 28. Qe2 {[%emt 0:03:58]} Nf6 {[%emt 0:02:32]} 29. Qd2 {[%emt 0:01:11]} Nxe4 {[%emt 0:04:27]} 30. Rxe4 {[%emt 0:00:05]} fxg3 {[%emt 0:00:24]} 31. hxg3 {[%emt 0:01:08]} Rg8 {[%emt 0:00:47]} 32. Qe2 {[%emt 0:00:53]} h5 {[%emt 0:01:04]} 33. b4 {[%emt 0:01:39]} axb4 {[%emt 0:04:57]} 34. axb4 {[%emt 0:00:07]} Rae8 {[%emt 0:01:12]} 35. b5 {[%emt 0:00:54]} Na5 {[%emt 0:03:40]} 36. Bf4 {[%emt 0:00:58]} exf4 {[%emt 0:02:23]} 37. Rxe8 {[%emt 0:00:04]} fxg3 {[%emt 0:00:08]} 38. Qe5+ {[%emt 0:02:26]} Qxe5 {[%emt 0:00:03]} 39. Rxe5 {[%emt 0:00:05]} gxf2+ {[%emt 0:00:33]} 40. Kxf2 {[%emt 0:00:04]} 1-0